[Event "Titled Tuesday Blitz February 07 Early 2023"]
[White "Serpi, Andrea"]
[Black "Berezin, Viktor"]
[WhiteFideId "2847499"]
[BlackFideId "14107872"]
[WhiteElo "2191"]
[BlackElo "2307"]
[Result "0-1"]
[Round "05"]
[TimeControl "180+2"]
[Date "2023.02.07"]
[WhiteClock "0:00:03"]
[BlackClock "0:00:12"]

1. e4 {[%clk 0:03:00]}  g6 {[%clk 0:02:59]} 2. d4 {[%clk 0:03:00]}  Bg7 {[%clk 0:03:00]} 3. Nc3 {[%clk 0:03:01]}  d6 {[%clk 0:02:58]} 4. Be3 {[%clk 0:03:00]}  Nf6 {[%clk 0:02:57]} 5. h3 {[%clk 0:02:59]}  O-O {[%clk 0:02:57]} 6. f4 {[%clk 0:02:59]}  e5 {[%clk 0:02:52]} 7. dxe5 {[%clk 0:02:56]}  dxe5 {[%clk 0:02:53]} 8. Qxd8 {[%clk 0:02:56]}  Rxd8 {[%clk 0:02:54]} 9. fxe5 {[%clk 0:02:56]}  Nfd7 {[%clk 0:02:51]} 10. O-O-O {[%clk 0:02:57]}  Nc6 {[%clk 0:02:48]} 11. Nf3 {[%clk 0:02:36]}  Ndxe5 {[%clk 0:02:42]} 12. Rxd8+ {[%clk 0:02:33]}  Nxd8 {[%clk 0:02:43]} 13. Nd5 {[%clk 0:02:26]}  Ne6 {[%clk 0:02:31]} 14. Ne7+ {[%clk 0:02:23]}  Kf8 {[%clk 0:02:31]} 15. Nxc8 {[%clk 0:02:23]}  Rxc8 {[%clk 0:02:32]} 16. Be2 {[%clk 0:02:16]}  Nxf3 {[%clk 0:02:28]} 17. gxf3 {[%clk 0:02:10]}  Be5 {[%clk 0:02:23]} 18. Rd1 {[%clk 0:02:10]}  Ke7 {[%clk 0:02:18]} 19. Rd5 {[%clk 0:01:58]}  f6 {[%clk 0:02:15]} 20. Kd2 {[%clk 0:01:53]}  c6 {[%clk 0:02:14]} 21. Rd3 {[%clk 0:01:48]}  Bf4 {[%clk 0:02:08]} 22. Bf1 {[%clk 0:01:31]}  g5 {[%clk 0:02:00]} 23. a4 {[%clk 0:01:26]}  h5 {[%clk 0:02:00]} 24. Ke2 {[%clk 0:01:26]}  Bxe3 {[%clk 0:01:58]} 25. Kxe3 {[%clk 0:01:26]}  Nf4 {[%clk 0:01:43]} 26. Rb3 {[%clk 0:01:25]}  Rc7 {[%clk 0:01:36]} 27. a5 {[%clk 0:01:23]}  Rd7 {[%clk 0:01:36]} 28. Bc4 {[%clk 0:01:16]}  Nxh3 {[%clk 0:01:33]} 29. Bf1 {[%clk 0:00:42]}  Nf4 {[%clk 0:01:32]} 30. c4 {[%clk 0:00:42]}  h4 {[%clk 0:01:30]} 31. c5 {[%clk 0:00:41]}  h3 {[%clk 0:01:24]} 32. a6 {[%clk 0:00:39]}  bxa6 {[%clk 0:01:18]} 33. Rb8 {[%clk 0:00:39]}  Rd1 {[%clk 0:00:57]} 34. Rb7+ {[%clk 0:00:25]}  Kf8 {[%clk 0:00:51]} 35. Rb8+ {[%clk 0:00:17]}  Kg7 {[%clk 0:00:48]} 36. Bc4 {[%clk 0:00:17]}  Rd7 {[%clk 0:00:19]} 37. e5 {[%clk 0:00:10]}  fxe5 {[%clk 0:00:18]} 38. Rg8+ {[%clk 0:00:09]}  Kh6 {[%clk 0:00:16]} 39. Bb3 {[%clk 0:00:03]}  Rd3+ {[%clk 0:00:13]} 40. Kf2 {[%clk 0:00:03]}  Rxb3 {[%clk 0:00:14]} 41. Rh8+ {[%clk 0:00:02]}  Kg7 {[%clk 0:00:14]} 42. Kg3 {[%clk 0:00:03]}  Kxh8 {[%clk 0:00:12]} 0-1


[Site "https://www.chess.com"]

[Event "Titled Tuesday Blitz February 07 Early 2023"]
[White "Avazkhonov, Alikhon"]
[Black "Larina, Maria"]
[WhiteFideId "14208504"]
[BlackFideId "24113182"]
[WhiteElo "1538"]
[BlackElo "1948"]
[Result "0-1"]
[Round "05"]
[TimeControl "180+2"]
[Date "2023.02.07"]
[WhiteClock "0:00:06"]
[BlackClock "0:00:05"]

1. d4 {[%clk 0:03:00]}  f5 {[%clk 0:02:26]} 2. g3 {[%clk 0:03:00]}  Nf6 {[%clk 0:02:26]} 3. Bg2 {[%clk 0:03:00]}  g6 {[%clk 0:02:26]} 4. Nf3 {[%clk 0:02:58]}  Bg7 {[%clk 0:02:26]} 5. O-O {[%clk 0:02:58]}  d6 {[%clk 0:02:26]} 6. c4 {[%clk 0:02:55]}  Nc6 {[%clk 0:02:26]} 7. Nc3 {[%clk 0:02:54]}  O-O {[%clk 0:02:24]} 8. d5 {[%clk 0:02:52]}  Na5 {[%clk 0:02:24]} 9. Nd2 {[%clk 0:02:23]}  c5 {[%clk 0:02:24]} 10. Rb1 {[%clk 0:02:23]}  e5 {[%clk 0:02:23]} 11. dxe6 {[%clk 0:02:15]}  Bxe6 {[%clk 0:02:23]} 12. b3 {[%clk 0:02:15]}  d5 {[%clk 0:02:18]} 13. cxd5 {[%clk 0:02:13]}  Nxd5 {[%clk 0:02:19]} 14. Nxd5 {[%clk 0:02:13]}  Bxd5 {[%clk 0:02:20]} 15. e4 {[%clk 0:01:58]}  fxe4 {[%clk 0:01:53]} 16. Nxe4 {[%clk 0:01:59]}  Bd4 {[%clk 0:01:46]} 17. Bh6 {[%clk 0:01:12]}  Re8 {[%clk 0:01:24]} 18. Nf6+ {[%clk 0:01:10]}  Qxf6 {[%clk 0:01:18]} 19. Bxd5+ {[%clk 0:01:10]}  Kh8 {[%clk 0:01:18]} 20. Qd2 {[%clk 0:01:07]}  Re5 {[%clk 0:01:13]} 21. Bg2 {[%clk 0:00:41]}  Nc6 {[%clk 0:01:12]} 22. Bf4 {[%clk 0:00:33]}  Re6 {[%clk 0:00:48]} 23. Rbe1 {[%clk 0:00:31]}  Rae8 {[%clk 0:00:48]} 24. Bd5 {[%clk 0:00:25]}  R6e7 {[%clk 0:00:41]} 25. Rxe7 {[%clk 0:00:11]}  Qxe7 {[%clk 0:00:38]} 26. b4 {[%clk 0:00:07]}  Nxb4 {[%clk 0:00:24]} 27. Bf3 {[%clk 0:00:08]}  b6 {[%clk 0:00:19]} 28. a3 {[%clk 0:00:07]}  Na6 {[%clk 0:00:17]} 29. Qd3 {[%clk 0:00:06]}  Nc7 {[%clk 0:00:16]} 30. Qc4 {[%clk 0:00:06]}  Ne6 {[%clk 0:00:15]} 31. Bd2 {[%clk 0:00:04]}  Qf7 {[%clk 0:00:13]} 32. Bd5 {[%clk 0:00:05]}  Qf6 {[%clk 0:00:11]} 33. Kg2 {[%clk 0:00:03]}  Ng5 {[%clk 0:00:09]} 34. f4 {[%clk 0:00:03]}  Ne6 {[%clk 0:00:06]} 35. Re1 {[%clk 0:00:03]}  Ng7 {[%clk 0:00:05]} 36. Rxe8+ {[%clk 0:00:03]}  Nxe8 {[%clk 0:00:06]} 37. Bf7 {[%clk 0:00:03]}  Nd6 {[%clk 0:00:06]} 38. Qd5 {[%clk 0:00:03]}  Nxf7 {[%clk 0:00:06]} 39. Qa8+ {[%clk 0:00:03]}  Kg7 {[%clk 0:00:06]} 40. h4 {[%clk 0:00:02]}  Qe7 {[%clk 0:00:05]} 41. Qf3 {[%clk 0:00:02]}  Qe6 {[%clk 0:00:05]} 42. h5 {[%clk 0:00:03]}  Nd6 {[%clk 0:00:05]} 43. h6+ {[%clk 0:00:03]}  Kg8 {[%clk 0:00:05]} 44. f5 {[%clk 0:00:03]}  Nxf5 {[%clk 0:00:05]} 45. Qa8+ {[%clk 0:00:04]}  Kf7 {[%clk 0:00:04]} 46. Qb7+ {[%clk 0:00:04]}  Qe7 {[%clk 0:00:05]} 47. Qd5+ {[%clk 0:00:04]}  Kf8 {[%clk 0:00:04]} 48. Qa8+ {[%clk 0:00:04]}  Qe8 {[%clk 0:00:05]} 49. Qb7 {[%clk 0:00:03]}  Bh8 {[%clk 0:00:04]} 50. Qxh7 {[%clk 0:00:03]}  Bf6 {[%clk 0:00:04]} 51. Qc7 {[%clk 0:00:02]}  Qd8 {[%clk 0:00:03]} 52. Qf4 {[%clk 0:00:01]}  Qd5+ {[%clk 0:00:03]} 53. Qf3 {[%clk 0:00:01]}  Qxf3+ {[%clk 0:00:02]} 54. Kxf3 {[%clk 0:00:02]}  Nxh6 {[%clk 0:00:02]} 55. Bxh6+ {[%clk 0:00:02]}  Kf7 {[%clk 0:00:03]} 56. Bf4 {[%clk 0:00:03]}  Ke6 {[%clk 0:00:04]} 57. Ke4 {[%clk 0:00:03]}  Bb2 {[%clk 0:00:04]} 58. g4 {[%clk 0:00:04]}  Bxa3 {[%clk 0:00:05]} 59. Bb8 {[%clk 0:00:04]}  a5 {[%clk 0:00:05]} 60. Ba7 {[%clk 0:00:05]}  b5 {[%clk 0:00:05]} 61. Bb6 {[%clk 0:00:05]}  a4 {[%clk 0:00:05]} 62. g5 {[%clk 0:00:06]}  c4 {[%clk 0:00:05]} 63. Ba5 {[%clk 0:00:06]}  Bb2 {[%clk 0:00:05]} 64. Bb4 {[%clk 0:00:06]}  a3 {[%clk 0:00:05]} 65. Ke3 {[%clk 0:00:04]}  a2 {[%clk 0:00:06]} 66. Ke2 {[%clk 0:00:05]}  a1=Q {[%clk 0:00:06]} 67. Ke3 {[%clk 0:00:05]}  Qd1 {[%clk 0:00:05]} 68. Kf2 {[%clk 0:00:05]}  c3 {[%clk 0:00:05]} 69. Ke3 {[%clk 0:00:06]}  c2 {[%clk 0:00:05]} 0-1


[Site "https://www.chess.com"]

[Event "Titled Tuesday Blitz February 07 Early 2023"]
[White "Bilan, Danila"]
[Black "Papasimakopoulos, Alexandros"]
[WhiteFideId "24161918"]
[BlackFideId "4244125"]
[WhiteElo "2303"]
[BlackElo "2401"]
[Result "0-1"]
[Round "05"]
[TimeControl "180+2"]
[Date "2023.02.07"]
[WhiteClock "0:00:17"]
[BlackClock "0:00:06"]

1. d4 {[%clk 0:03:00]}  e6 {[%clk 0:02:36]} 2. Nf3 {[%clk 0:02:59]}  Nf6 {[%clk 0:02:36]} 3. g3 {[%clk 0:02:59]}  b5 {[%clk 0:02:35]} 4. Bg2 {[%clk 0:02:59]}  Bb7 {[%clk 0:02:36]} 5. O-O {[%clk 0:03:00]}  h6 {[%clk 0:02:34]} 6. a4 {[%clk 0:02:53]}  b4 {[%clk 0:02:34]} 7. c4 {[%clk 0:02:53]}  bxc3 {[%clk 0:02:34]} 8. bxc3 {[%clk 0:02:53]}  c5 {[%clk 0:02:31]} 9. Ba3 {[%clk 0:02:49]}  Na6 {[%clk 0:02:28]} 10. Nbd2 {[%clk 0:02:45]}  Be7 {[%clk 0:02:26]} 11. Rb1 {[%clk 0:02:36]}  Bc6 {[%clk 0:02:26]} 12. Ne5 {[%clk 0:02:35]}  Bxg2 {[%clk 0:02:25]} 13. Kxg2 {[%clk 0:02:36]}  O-O {[%clk 0:02:21]} 14. e3 {[%clk 0:02:20]}  Qc7 {[%clk 0:01:59]} 15. Qe2 {[%clk 0:02:06]}  Qa5 {[%clk 0:01:33]} 16. Qb5 {[%clk 0:01:56]}  Qxc3 {[%clk 0:01:29]} 17. Qxa6 {[%clk 0:01:09]}  Qxa3 {[%clk 0:01:13]} 18. Rb3 {[%clk 0:00:37]}  Qa2 {[%clk 0:01:10]} 19. Nec4 {[%clk 0:00:33]}  cxd4 {[%clk 0:01:05]} 20. Rb2 {[%clk 0:00:33]}  Qxb2 {[%clk 0:00:51]} 21. Nxb2 {[%clk 0:00:33]}  dxe3 {[%clk 0:00:51]} 22. fxe3 {[%clk 0:00:34]}  d5 {[%clk 0:00:49]} 23. Nd3 {[%clk 0:00:30]}  Rfc8 {[%clk 0:00:45]} 24. Rc1 {[%clk 0:00:30]}  Rcb8 {[%clk 0:00:44]} 25. Kf3 {[%clk 0:00:29]}  Rb6 {[%clk 0:00:35]} 26. Rc8+ {[%clk 0:00:28]}  Rxc8 {[%clk 0:00:31]} 27. Qxc8+ {[%clk 0:00:28]}  Bf8 {[%clk 0:00:24]} 28. Ne5 {[%clk 0:00:26]}  Rb2 {[%clk 0:00:19]} 29. Qc3 {[%clk 0:00:22]}  Ra2 {[%clk 0:00:18]} 30. a5 {[%clk 0:00:22]}  g5 {[%clk 0:00:16]} 31. Nb3 {[%clk 0:00:22]}  Rf2+ {[%clk 0:00:13]} 32. Kxf2 {[%clk 0:00:17]}  Ne4+ {[%clk 0:00:14]} 33. Kf3 {[%clk 0:00:16]}  Nxc3 {[%clk 0:00:15]} 34. Nc6 {[%clk 0:00:17]}  a6 {[%clk 0:00:14]} 35. Nb8 {[%clk 0:00:17]}  Nb5 {[%clk 0:00:09]} 36. Nxa6 {[%clk 0:00:17]}  f5 {[%clk 0:00:07]} 37. Nb8 {[%clk 0:00:17]}  Na7 {[%clk 0:00:05]} 38. a6 {[%clk 0:00:16]}  Kf7 {[%clk 0:00:05]} 39. Na5 {[%clk 0:00:17]}  Bc5 {[%clk 0:00:03]} 40. Nac6 {[%clk 0:00:16]}  Nc8 {[%clk 0:00:02]} 41. Nd7 {[%clk 0:00:15]}  Bd6 {[%clk 0:00:01]} 42. a7 {[%clk 0:00:15]}  Nxa7 {[%clk 0:00:02]} 43. Nxa7 {[%clk 0:00:15]}  Ke7 {[%clk 0:00:02]} 44. Nb6 {[%clk 0:00:15]}  Bc5 {[%clk 0:00:02]} 45. Nac8+ {[%clk 0:00:13]}  Kd8 {[%clk 0:00:03]} 46. g4 {[%clk 0:00:08]}  Kc7 {[%clk 0:00:02]} 47. gxf5 {[%clk 0:00:08]}  exf5 {[%clk 0:00:02]} 48. Nxd5+ {[%clk 0:00:07]}  Kxc8 {[%clk 0:00:02]} 49. e4 {[%clk 0:00:08]}  f4 {[%clk 0:00:01]} 50. Nf6 {[%clk 0:00:06]}  Kd8 {[%clk 0:00:01]} 51. h4 {[%clk 0:00:05]}  Ke7 {[%clk 0:00:01]} 52. hxg5 {[%clk 0:00:05]}  hxg5 {[%clk 0:00:02]} 53. Ng4 {[%clk 0:00:06]}  Ke6 {[%clk 0:00:02]} 54. Nh2 {[%clk 0:00:06]}  Be7 {[%clk 0:00:03]} 55. Ng4 {[%clk 0:00:07]}  Kf7 {[%clk 0:00:03]} 56. Nh6+ {[%clk 0:00:07]}  Kg6 {[%clk 0:00:04]} 57. Ng4 {[%clk 0:00:07]}  Bf8 {[%clk 0:00:04]} 58. Ne5+ {[%clk 0:00:07]}  Kf6 {[%clk 0:00:04]} 59. Ng4+ {[%clk 0:00:08]}  Kf7 {[%clk 0:00:05]} 60. Ne5+ {[%clk 0:00:08]}  Ke6 {[%clk 0:00:05]} 61. Ng4 {[%clk 0:00:09]}  Bg7 {[%clk 0:00:06]} 62. Nf2 {[%clk 0:00:09]}  Kd6 {[%clk 0:00:06]} 63. Ng4 {[%clk 0:00:10]}  Kc5 {[%clk 0:00:07]} 64. Nh2 {[%clk 0:00:10]}  Bf6 {[%clk 0:00:07]} 65. Ng4 {[%clk 0:00:11]}  Bd8 {[%clk 0:00:07]} 66. Nh2 {[%clk 0:00:12]}  Kd4 {[%clk 0:00:08]} 67. Ng4 {[%clk 0:00:12]}  Kd3 {[%clk 0:00:08]} 68. Nh6 {[%clk 0:00:13]}  Kd2 {[%clk 0:00:07]} 69. Ng4 {[%clk 0:00:14]}  Ke1 {[%clk 0:00:07]} 70. Nh6 {[%clk 0:00:14]}  Kf1 {[%clk 0:00:08]} 71. e5 {[%clk 0:00:14]}  Kg1 {[%clk 0:00:06]} 72. e6 {[%clk 0:00:15]}  Kh2 {[%clk 0:00:06]} 73. Nf7 {[%clk 0:00:15]}  Be7 {[%clk 0:00:06]} 74. Kg4 {[%clk 0:00:14]}  Kg2 {[%clk 0:00:07]} 75. Ne5 {[%clk 0:00:15]}  Bd8 {[%clk 0:00:03]} 76. Nf3 {[%clk 0:00:15]}  Be7 {[%clk 0:00:02]} 77. Nd4 {[%clk 0:00:15]}  Kf2 {[%clk 0:00:02]} 78. Nc6 {[%clk 0:00:14]}  Bf6 {[%clk 0:00:02]} 79. Kf5 {[%clk 0:00:14]}  f3 {[%clk 0:00:01]} 80. Kxf6 {[%clk 0:00:14]}  Kg2 {[%clk 0:00:02]} 81. Ne5 {[%clk 0:00:14]}  f2 {[%clk 0:00:02]} 82. Ng4 {[%clk 0:00:15]}  f1=Q+ {[%clk 0:00:01]} 83. Kg7 {[%clk 0:00:15]}  Qe2 {[%clk 0:00:02]} 84. Kf7 {[%clk 0:00:15]}  Qxg4 {[%clk 0:00:02]} 85. e7 {[%clk 0:00:15]}  Qf5+ {[%clk 0:00:03]} 86. Kg8 {[%clk 0:00:16]}  Qe5 {[%clk 0:00:03]} 87. Kf7 {[%clk 0:00:16]}  Qxe7+ {[%clk 0:00:04]} 88. Kg6 {[%clk 0:00:17]}  g4 {[%clk 0:00:05]} 89. Kh5 {[%clk 0:00:16]}  g3 {[%clk 0:00:06]} 90. Kg4 {[%clk 0:00:17]}  Kf2 {[%clk 0:00:06]} 0-1


[Site "https://www.chess.com"]

[Event "Titled Tuesday Blitz February 07 Early 2023"]
[White "Skliarov, Viktor"]
[Black "Fernandez, Michael"]
[WhiteFideId "14106736"]
[BlackFideId "5803560"]
[WhiteElo "2383"]
[BlackElo "2181"]
[Result "1-0"]
[Round "05"]
[TimeControl "180+2"]
[Date "2023.02.07"]
[WhiteClock "0:00:13"]
[BlackClock "0:00:02"]

1. e4 {[%clk 0:02:59]}  e6 {[%clk 0:02:48]} 2. d4 {[%clk 0:02:54]}  d5 {[%clk 0:02:48]} 3. e5 {[%clk 0:02:54]}  c5 {[%clk 0:02:48]} 4. c3 {[%clk 0:02:54]}  Nc6 {[%clk 0:02:48]} 5. Nf3 {[%clk 0:02:54]}  Qb6 {[%clk 0:02:48]} 6. a3 {[%clk 0:02:54]}  c4 {[%clk 0:02:46]} 7. Nbd2 {[%clk 0:02:53]}  Na5 {[%clk 0:02:46]} 8. g3 {[%clk 0:02:54]}  h5 {[%clk 0:02:38]} 9. h4 {[%clk 0:02:52]}  Nh6 {[%clk 0:02:37]} 10. Bh3 {[%clk 0:02:50]}  Bd7 {[%clk 0:02:29]} 11. O-O {[%clk 0:02:49]}  Be7 {[%clk 0:02:18]} 12. Re1 {[%clk 0:02:44]}  O-O-O {[%clk 0:02:02]} 13. Rb1 {[%clk 0:02:41]}  Nb3 {[%clk 0:01:55]} 14. Nxb3 {[%clk 0:02:39]}  Ba4 {[%clk 0:01:54]} 15. Nfd2 {[%clk 0:02:39]}  cxb3 {[%clk 0:01:48]} 16. Qf3 {[%clk 0:02:27]}  g5 {[%clk 0:01:21]} 17. hxg5 {[%clk 0:02:21]}  Bxg5 {[%clk 0:01:22]} 18. Nxb3 {[%clk 0:02:21]}  Bxc1 {[%clk 0:01:06]} 19. Nxc1 {[%clk 0:02:19]}  Bc2 {[%clk 0:01:03]} 20. Ra1 {[%clk 0:02:18]}  Qxb2 {[%clk 0:00:50]} 21. Ra2 {[%clk 0:02:12]}  Qb1 {[%clk 0:00:50]} 22. Qe2 {[%clk 0:01:58]}  Bf5 {[%clk 0:00:38]} 23. Rb2 {[%clk 0:01:41]}  Qe4 {[%clk 0:00:37]} 24. Qd1 {[%clk 0:01:40]}  Bg4 {[%clk 0:00:19]} 25. Rxe4 {[%clk 0:01:21]}  Bxd1 {[%clk 0:00:18]} 26. Re1 {[%clk 0:01:22]}  Bg4 {[%clk 0:00:15]} 27. Bg2 {[%clk 0:01:22]}  h4 {[%clk 0:00:15]} 28. f3 {[%clk 0:01:19]}  Bf5 {[%clk 0:00:14]} 29. g4 {[%clk 0:01:19]}  Bg6 {[%clk 0:00:14]} 30. Ne2 {[%clk 0:01:13]}  Ng8 {[%clk 0:00:14]} 31. Nf4 {[%clk 0:01:13]}  Ne7 {[%clk 0:00:14]} 32. Kh2 {[%clk 0:01:11]}  b6 {[%clk 0:00:13]} 33. Bf1 {[%clk 0:01:08]}  Kd7 {[%clk 0:00:13]} 34. Bb5+ {[%clk 0:01:07]}  Kc7 {[%clk 0:00:11]} 35. a4 {[%clk 0:01:07]}  Kb7 {[%clk 0:00:10]} 36. Kh3 {[%clk 0:00:38]}  Rc8 {[%clk 0:00:08]} 37. Re3 {[%clk 0:00:38]}  a6 {[%clk 0:00:08]} 38. Bf1 {[%clk 0:00:35]}  Rc6 {[%clk 0:00:07]} 39. Ng2 {[%clk 0:00:33]}  Rhc8 {[%clk 0:00:06]} 40. Rb3 {[%clk 0:00:33]}  Bc2 {[%clk 0:00:06]} 41. Ra3 {[%clk 0:00:33]}  Ng6 {[%clk 0:00:05]} 42. f4 {[%clk 0:00:33]}  Be4 {[%clk 0:00:05]} 43. Rxe4 {[%clk 0:00:12]}  dxe4 {[%clk 0:00:03]} 44. c4 {[%clk 0:00:13]}  Rxc4 {[%clk 0:00:02]} 45. Bxc4 {[%clk 0:00:12]}  Rxc4 {[%clk 0:00:03]} 46. f5 {[%clk 0:00:13]}  exf5 {[%clk 0:00:02]} 47. gxf5 {[%clk 0:00:13]}  Ne7 {[%clk 0:00:02]} 48. Nxh4 {[%clk 0:00:11]}  Rxd4 {[%clk 0:00:03]} 49. e6 {[%clk 0:00:11]}  fxe6 {[%clk 0:00:03]} 50. f6 {[%clk 0:00:12]}  Nc6 {[%clk 0:00:02]} 51. f7 {[%clk 0:00:12]}  Rd8 {[%clk 0:00:02]} 52. Ng6 {[%clk 0:00:12]}  Rd3+ {[%clk 0:00:01]} 53. Rxd3 {[%clk 0:00:12]}  exd3 {[%clk 0:00:02]} 54. f8=Q {[%clk 0:00:13]} 1-0


[Site "https://www.chess.com"]

[Event "Titled Tuesday Blitz February 07 Early 2023"]
[White "Gatterer, Florian"]
[Black "Parkhov, Yair"]
[WhiteFideId "811688"]
[BlackFideId "2813408"]
[WhiteElo "2170"]
[BlackElo "2505"]
[Result "0-1"]
[Round "05"]
[TimeControl "180+2"]
[Date "2023.02.07"]
[WhiteClock "0:00:03"]
[BlackClock "0:00:13"]

1. b3 {[%clk 0:03:00]}  d5 {[%clk 0:02:53]} 2. Bb2 {[%clk 0:02:59]}  Bf5 {[%clk 0:02:51]} 3. g3 {[%clk 0:02:56]}  e6 {[%clk 0:02:50]} 4. Bg2 {[%clk 0:02:56]}  h5 {[%clk 0:02:47]} 5. h4 {[%clk 0:02:55]}  c5 {[%clk 0:02:46]} 6. d3 {[%clk 0:02:54]}  Nc6 {[%clk 0:02:45]} 7. Nd2 {[%clk 0:02:54]}  d4 {[%clk 0:02:38]} 8. e4 {[%clk 0:02:33]}  Bg6 {[%clk 0:02:24]} 9. a3 {[%clk 0:02:26]}  e5 {[%clk 0:02:18]} 10. Qe2 {[%clk 0:02:20]}  f6 {[%clk 0:02:16]} 11. Nh3 {[%clk 0:02:19]}  Bd6 {[%clk 0:02:15]} 12. O-O {[%clk 0:02:18]}  Nh6 {[%clk 0:02:12]} 13. Kh1 {[%clk 0:01:54]}  b5 {[%clk 0:02:06]} 14. a4 {[%clk 0:01:53]}  a6 {[%clk 0:02:06]} 15. f4 {[%clk 0:01:46]}  Ng4 {[%clk 0:02:02]} 16. fxe5 {[%clk 0:01:38]}  Ncxe5 {[%clk 0:02:01]} 17. Nf4 {[%clk 0:01:34]}  Bf7 {[%clk 0:02:00]} 18. Nf3 {[%clk 0:01:27]}  Ne3 {[%clk 0:01:54]} 19. Rg1 {[%clk 0:01:18]}  g5 {[%clk 0:01:37]} 20. Nxe5 {[%clk 0:01:02]}  Bxe5 {[%clk 0:01:33]} 21. Nd5 {[%clk 0:00:59]}  Bxd5 {[%clk 0:01:24]} 22. exd5 {[%clk 0:00:57]}  gxh4 {[%clk 0:01:24]} 23. gxh4 {[%clk 0:00:48]}  f5 {[%clk 0:01:23]} 24. Qf2 {[%clk 0:00:36]}  Rg8 {[%clk 0:01:00]} 25. Bf3 {[%clk 0:00:36]}  Rg4 {[%clk 0:00:52]} 26. Bxg4 {[%clk 0:00:33]}  hxg4 {[%clk 0:00:51]} 27. Bc1 {[%clk 0:00:20]}  Qxd5+ {[%clk 0:00:48]} 28. Rg2 {[%clk 0:00:20]}  O-O-O {[%clk 0:00:26]} 29. axb5 {[%clk 0:00:17]}  axb5 {[%clk 0:00:18]} 30. Bxe3 {[%clk 0:00:16]}  dxe3 {[%clk 0:00:18]} 31. Qxf5+ {[%clk 0:00:15]}  Kb7 {[%clk 0:00:17]} 32. Rf1 {[%clk 0:00:10]}  Rh8 {[%clk 0:00:16]} 33. h5 {[%clk 0:00:09]}  e2 {[%clk 0:00:13]} 34. Re1 {[%clk 0:00:05]}  Qf3 {[%clk 0:00:12]} 35. Rxe2 {[%clk 0:00:04]}  Qxf5 {[%clk 0:00:12]} 36. Ref2 {[%clk 0:00:03]}  Rxh5+ {[%clk 0:00:12]} 37. Kg1 {[%clk 0:00:03]}  Bd4 {[%clk 0:00:12]} 38. Kf1 {[%clk 0:00:03]}  Rh1+ {[%clk 0:00:12]} 39. Ke2 {[%clk 0:00:03]}  Qe5+ {[%clk 0:00:13]} 0-1


[Site "https://www.chess.com"]

[Event "Titled Tuesday Blitz February 07 Early 2023"]
[White "Hnydiuk, Aleksander"]
[Black "Dinu, Dumitru-Daniel"]
[WhiteFideId "1109057"]
[BlackFideId "1208403"]
[WhiteElo "2363"]
[BlackElo "2203"]
[Result "0-1"]
[Round "05"]
[TimeControl "180+2"]
[Date "2023.02.07"]
[WhiteClock "0:00:01"]
[BlackClock "0:00:16"]

1. e4 {[%clk 0:03:00]}  c5 {[%clk 0:02:59]} 2. Nf3 {[%clk 0:03:01]}  e6 {[%clk 0:02:57]} 3. d4 {[%clk 0:03:01]}  cxd4 {[%clk 0:02:57]} 4. Nxd4 {[%clk 0:03:02]}  Nf6 {[%clk 0:02:57]} 5. Nc3 {[%clk 0:03:03]}  Nc6 {[%clk 0:02:57]} 6. Ndb5 {[%clk 0:03:01]}  Bb4 {[%clk 0:02:55]} 7. a3 {[%clk 0:02:58]}  Bxc3+ {[%clk 0:02:54]} 8. Nxc3 {[%clk 0:02:59]}  d5 {[%clk 0:02:54]} 9. Bd3 {[%clk 0:02:59]}  O-O {[%clk 0:02:53]} 10. O-O {[%clk 0:02:59]}  d4 {[%clk 0:02:44]} 11. Ne2 {[%clk 0:02:59]}  e5 {[%clk 0:02:44]} 12. Ng3 {[%clk 0:02:59]}  Bg4 {[%clk 0:02:38]} 13. f3 {[%clk 0:02:59]}  Be6 {[%clk 0:02:38]} 14. f4 {[%clk 0:03:00]}  Bg4 {[%clk 0:02:38]} 15. Qe1 {[%clk 0:03:00]}  Nh5 {[%clk 0:02:24]} 16. f5 {[%clk 0:02:59]}  Qh4 {[%clk 0:02:10]} 17. Nxh5 {[%clk 0:02:58]}  Qxe1 {[%clk 0:02:05]} 18. Rxe1 {[%clk 0:02:59]}  Bxh5 {[%clk 0:02:06]} 19. Bc4 {[%clk 0:02:54]}  Kh8 {[%clk 0:02:05]} 20. f6 {[%clk 0:02:45]}  gxf6 {[%clk 0:02:02]} 21. Rf1 {[%clk 0:02:44]}  Bg6 {[%clk 0:02:01]} 22. Bd3 {[%clk 0:02:37]}  Kg7 {[%clk 0:01:58]} 23. Bd2 {[%clk 0:02:36]}  Nd8 {[%clk 0:01:50]} 24. Rf3 {[%clk 0:02:34]}  Ne6 {[%clk 0:01:50]} 25. Raf1 {[%clk 0:02:32]}  Ng5 {[%clk 0:01:49]} 26. Rxf6 {[%clk 0:02:29]}  h6 {[%clk 0:01:44]} 27. h4 {[%clk 0:02:21]}  Nh7 {[%clk 0:01:41]} 28. Rd6 {[%clk 0:02:15]}  h5 {[%clk 0:01:38]} 29. Rd7 {[%clk 0:02:01]}  b6 {[%clk 0:01:34]} 30. g4 {[%clk 0:01:46]}  Nf6 {[%clk 0:01:19]} 31. Rxf6 {[%clk 0:00:40]}  Kxf6 {[%clk 0:01:15]} 32. g5+ {[%clk 0:00:38]}  Ke6 {[%clk 0:01:12]} 33. Rd5 {[%clk 0:00:19]}  Rad8 {[%clk 0:00:50]} 34. Bb4 {[%clk 0:00:14]}  Rfe8 {[%clk 0:00:43]} 35. Bb5 {[%clk 0:00:13]}  Rg8 {[%clk 0:00:41]} 36. Bc4 {[%clk 0:00:13]}  Rxd5 {[%clk 0:00:40]} 37. Bxd5+ {[%clk 0:00:11]}  Kd7 {[%clk 0:00:41]} 38. Kf2 {[%clk 0:00:09]}  a5 {[%clk 0:00:41]} 39. Be1 {[%clk 0:00:08]}  Rc8 {[%clk 0:00:41]} 40. c3 {[%clk 0:00:06]}  Kd6 {[%clk 0:00:28]} 41. Ke2 {[%clk 0:00:03]}  dxc3 {[%clk 0:00:26]} 42. Bxc3 {[%clk 0:00:04]}  Rf8 {[%clk 0:00:22]} 43. Kd3 {[%clk 0:00:02]}  f5 {[%clk 0:00:20]} 44. gxf6 {[%clk 0:00:02]}  Rxf6 {[%clk 0:00:19]} 45. Bd2 {[%clk 0:00:03]}  Rf3+ {[%clk 0:00:19]} 46. Kc2 {[%clk 0:00:02]}  Rh3 {[%clk 0:00:19]} 47. Bg5 {[%clk 0:00:02]}  Rg3 {[%clk 0:00:15]} 48. Kd2 {[%clk 0:00:02]}  Rg4 {[%clk 0:00:15]} 49. Ke3 {[%clk 0:00:01]}  Kc5 {[%clk 0:00:16]} 0-1


[Site "https://www.chess.com"]